fUST/lending_fUST_20241129
["ID","MTS","AMOUNT","RATE_DAILY","PERIOD"]
[343693851,1732876243857,-500.0,0.00028999,2]
[343693852,1732876243868,-500.0,0.00028999,2]
[343693853,1732876243878,-13653.16722371,0.00029,30]
[343693854,1732876243888,-1025.49452814,0.00029,2]
[343693855,1732876243898,-989.6142775,0.00029006,2]
[343693856,1732876243908,-939.7898521,0.00029162,2]
[343693857,1732876243925,-420.0,0.00029189,2]
[343693858,1732876243939,-989.6142775,0.00029215,2]
[343693859,1732876243948,-531.0,0.00029237,2]
[343693860,1732876243959,-155.65,0.00029313,22]
[343693861,1732876243970,-153.0,0.00029313,2]
[343693862,1732876243979,-204.1158975,0.0002936,2]
[343693863,1732876243989,-989.6142775,0.00029423,2]
[343693864,1732876243999,-1180.42236905,0.0002945,5]
[343693865,1732876244009,-989.6142775,0.00029632,2]
[343693866,1732876244018,-4719.223,0.00029646,2]
[343693867,1732876244029,-57.40645305,0.00029663,2]
[343693868,1732876244042,-9104.73514644,0.00029663,2]
[343693869,1732876244051,-420.0,0.00029699,2]
[343693870,1732876244061,-500.0,0.00029783,2]
[343693871,1732876244071,-500.0,0.00029802,2]
[343693872,1732876244080,-461.23,0.00029814,10]
[343693873,1732876244090,-664.17,0.00029824,10]
[343693874,1732876244099,-500.0,0.00029834,3]
[343693875,1732876244109,-500.0,0.00029834,3]
[343693876,1732876244118,-5000.0,0.00029834,2]
[343693877,1732876244128,-989.6142775,0.0002984,2]
[343693878,1732876244138,-500.0,0.00029997,3]
[343693879,1732876244147,-500.0,0.00029997,3]
[343693880,1732876244157,-500.0,0.00029998,3]
[343693881,1732876244166,-384.0,0.0003,2]
[343693882,1732876244176,-210.0,0.0003,2]
[343693883,1732876244185,-989.6142775,0.00030049,2]
[343693884,1732876244194,-270.04817276,0.00030055,2]
[343693896,1732876246267,-2378.0,0.00029237,2]
[343693897,1732876246277,-151.085,0.00029646,2]
[343693898,1732876246287,-229.95182724,0.00030055,2]
[343693899,1732876246296,-403.43001496,0.00030056,2]
[343693901,1732876246306,-617.0,0.000301,2]
[343693903,1732876246316,-212.0,0.000301,27]
[343693905,1732876246325,-259.1431578,0.00030106,2]
[343693906,1732876246337,-144.28685716,0.00030106,2]
[343693907,1732876246346,-205.041507,0.00030137,120]
[343693908,1732876246355,-305.25,0.00030146,3]
[343693909,1732876246364,-152.62,0.00030146,3]
[343693910,1732876246374,-457.89,0.00030146,3]
[343693911,1732876246383,-500.0,0.00030153,3]
[343693912,1732876246392,-500.0,0.00030153,3]
[343693913,1732876246403,-2920.52101342,0.00030153,2]
[343693914,1732876246412,-500.0,0.00030155,3]
[343693915,1732876246422,-500.0,0.00030155,3]
[343693916,1732876246432,-500.0,0.00030155,2]
[343693917,1732876246443,-458.30111341,0.00030155,2]
[343693918,1732876246455,-159.54706455,0.00030155,2]
[343693919,1732876246465,-201.17204146,0.00030155,2]
[343693920,1732876246474,-500.0,0.00030156,3]
[343693921,1732876246483,-500.0,0.00030156,3]
[343693922,1732876246492,-500.0,0.00030156,3]
[343693923,1732876246501,-248.26695989,0.00030156,3]
[343693924,1732876246518,-251.73304011,0.00030156,3]
[343693925,1732876246528,-55.57828954,0.00030156,3]
[343693927,1732876386604,169.706983,0.00013973,2]
[343693936,1732877145144,-336.17838374,0.00026384,2]
[343693937,1732877145167,-344.95275018,0.00027168,2]
[343693938,1732877174089,169.706983,0.00013973,2]
[343693939,1732877239085,-302.66710251,0.00027032,4]
[343693940,1732877239111,-1929.49376957,0.00027094,2]
[343693941,1732877244156,-258.51825183,0.00027094,2]
[343693942,1732877244178,-439.305949,0.00027173,2]
[343693943,1732877244202,-311.30891919,0.00027703,2]
[343693944,1732877244224,-609.38358408,0.00028497,2]
[343693945,1732877247132,-360.92871967,0.00028497,2]
[343693946,1732877247155,-300.0,0.0002856,2]
[343693947,1732877247176,-2667.0,0.0002856,2]
[343693948,1732877247197,-300.0,0.0002856,2]
[343693949,1732877247219,-8807.31219427,0.00028561,2]
[343693950,1732877247242,-504.76032522,0.00028573,2]
[343693951,1732877247262,-389.38822007,0.00028573,5]
[343693952,1732877247284,-171.62297525,0.00028573,5]
[343693953,1732877247305,-500.0,0.00028573,5]
[343693954,1732877247325,-501.90660318,0.00028573,2]
[343693955,1732877247345,-502.47426701,0.00028573,5]
[343693956,1732877247368,-501.56317806,0.00028573,5]
[343693957,1732877247390,-500.0,0.00028597,2]
[343693958,1732877247411,-500.0,0.00028597,2]
[343693959,1732877247431,-547.15088925,0.00028597,2]
[343693960,1732877247451,-500.0,0.00028597,2]
[343693961,1732877247475,-500.0,0.00028597,2]
[343693962,1732877247497,-500.0,0.00028597,2]
[343693963,1732877247519,-500.0,0.00028597,2]
[343693964,1732877247540,-500.0,0.00028597,2]
[343693965,1732877247561,-500.0,0.00028597,2]
[343693966,1732877247582,-500.0,0.00028597,2]
[343693967,1732877247607,-500.0,0.00028597,2]
[343693968,1732877247628,-500.0,0.00028597,2]
[343693969,1732877247774,-500.0,0.00028597,2]
[343693970,1732877247797,-500.0,0.00028597,2]
[343693971,1732877247818,-500.0,0.00028597,2]
[343693972,1732877247841,-425.09342189,0.00028597,2]
[343693973,1732877247863,-500.0,0.00028597,2]
[343693974,1732877247883,-500.0,0.00028597,2]
[343693975,1732877247905,-500.0,0.00028597,2]
[343693976,1732877247927,-500.0,0.00028597,2]
[343693977,1732877247948,-500.0,0.00028597,2]
[343693978,1732877247970,-500.0,0.00028597,2]
[343693979,1732877247990,-500.0,0.00028597,2]
[343693980,1732877248011,-500.0,0.00028597,2]
[343693981,1732877248032,-500.0,0.00028597,2]
[343693982,1732877248053,-500.0,0.00028597,2]
[343693983,1732877248072,-500.0,0.00028597,2]
[343693984,1732877248092,-266.41701205,0.00028597,2]
[343693985,1732877248116,-500.0,0.00028597,2]
[343693986,1732877248137,-500.0,0.00028597,2]
[343693987,1732877248157,-500.0,0.00028597,2]
[343693988,1732877248178,-500.0,0.00028597,2]
[343693989,1732877248199,-500.0,0.00028597,2]
[343693990,1732877248220,-500.0,0.00028597,2]
[343693991,1732877248242,-500.0,0.00028597,2]
[343693992,1732877248263,-500.0,0.00028597,2]
[343693993,1732877248285,-500.0,0.00028597,2]
[343693994,1732877248305,-447.22872133,0.00028597,2]
[343693995,1732877248327,-500.0,0.00028597,2]
[343693996,1732877248352,-500.0,0.00028597,2]
[343693997,1732877248374,-500.0,0.00028597,2]
[343693998,1732877248395,-500.0,0.00028597,2]
[343693999,1732877248415,-497.31303214,0.00028597,2]
[343694000,1732877248435,-500.0,0.00028597,2]
[343694001,1732877248456,-500.0,0.00028597,2]
[343694002,1732877248477,-500.0,0.00028597,2]
[343694003,1732877248498,-500.0,0.00028597,2]
[343694004,1732877248518,-500.0,0.00028597,2]
[343694005,1732877248539,-500.0,0.00028597,2]
[343694006,1732877248560,-500.0,0.00028597,2]
[343694007,1732877248582,-500.0,0.00028597,2]
[343694008,1732877248606,-500.0,0.00028597,2]
[343694009,1732877248627,-500.0,0.00028597,2]
[343694010,1732877248649,-500.0,0.00028597,2]
[343694011,1732877248672,-500.0,0.00028597,2]
[343694012,1732877248696,-500.0,0.00028597,2]
[343694013,1732877248721,-500.0,0.00028597,2]
[343694014,1732877248741,-5000.0,0.00028598,2]
[343694015,1732877248769,-4028.49758255,0.00028598,2]
[343694016,1732877248790,-1465.85916278,0.00028599,2]
[343694017,1732877248811,-159.683,0.00028599,20]
[343694018,1732877248831,-5350.43681334,0.000286,7]
[343694019,1732877249099,-1183.03893023,0.000286,7]
[343694159,1732877439246,-164.772185,0.00027413,2]
[343694160,1732877439255,-219.652974,0.00027474,2]
[343694161,1732877439264,-300.0,0.00028599,2]
[343694162,1732877439273,-300.0,0.00028599,2]
[343694163,1732877439283,-5648.31218745,0.000286,7]
[343694164,1732877439598,-179.83518934,0.000286,7]
[343694173,1732877440451,-5010.60541908,0.000286,7]
[343694174,1732877440708,-248.01787467,0.000286,7]
[343694192,1732877443504,-8070.59348903,0.000286,7]
[343694194,1732877443515,-1169.27083333,0.000286,7]
[343694196,1732877443537,-1169.27083333,0.000286,7]
[343694197,1732877443556,-920.91,0.000287,2]
[343694200,1732877443566,-500.0,0.00028767,2]
[343694202,1732877443575,-500.0,0.00028767,2]
[343694204,1732877443585,-500.0,0.00028767,2]
[343694205,1732877443594,-500.0,0.00028767,3]
[343694207,1732877443604,-504.94183079,0.00028767,3]
[343694210,1732877443614,-500.0,0.00028767,3]
[343694211,1732877443623,-500.0,0.00028767,3]
[343694214,1732877443633,-500.0,0.00028767,3]
[343694215,1732877443643,-500.0,0.00028767,3]
[343694217,1732877443653,-500.0,0.00028767,3]
[343694220,1732877443663,-500.0,0.00028767,3]
[343694222,1732877443672,-500.0,0.00028767,3]
[343694224,1732877443682,-500.0,0.00028767,3]
[343694226,1732877443692,-500.0,0.00028767,3]
[343694227,1732877443701,-500.0,0.00028767,3]
[343694229,1732877443710,-500.0,0.00028767,3]
[343694232,1732877443719,-500.0,0.00028767,3]
[343694235,1732877443728,-500.0,0.00028767,3]
[343694238,1732877443738,-500.0,0.00028767,3]
[343694241,1732877443747,-500.0,0.00028767,3]
[343694244,1732877443756,-500.0,0.00028767,3]
[343694247,1732877443766,-500.0,0.00028767,3]
[343694249,1732877443775,-500.0,0.00028767,3]
[343694251,1732877443784,-500.0,0.00028767,3]
[343694253,1732877443793,-500.0,0.00028767,3]
[343694255,1732877443804,-500.0,0.00028767,3]
[343694257,1732877443818,-500.0,0.00028767,3]
[343694259,1732877443828,-180.26685687,0.00028767,3]
[343694261,1732877443837,-500.0,0.00028776,2]
[343694263,1732877443847,-500.0,0.00028776,3]
[343694265,1732877443858,-500.0,0.00028776,3]
[343694266,1732877443872,-500.0,0.00028861,3]
[343694268,1732877443882,-500.0,0.00028865,2]
[343694269,1732877443891,-307.37966801,0.00028865,2]
[343694270,1732877443903,-500.0,0.00028865,2]
[343694271,1732877443912,-602.78815799,0.00028865,2]
[343694272,1732877443921,-438.58096904,0.00028865,2]
[343694273,1732877443931,-500.0,0.00028865,2]
[343694274,1732877443941,-221.92367024,0.00028865,2]
[343694275,1732877443951,-977.23944185,0.00028866,2]
[343694276,1732877443960,-500.0,0.00028867,5]
[343694277,1732877443970,-500.0,0.00028873,5]
[343694278,1732877443980,-575.73844618,0.00028899,3]
[343694279,1732877443989,-500.0,0.00028899,3]
[343694280,1732877443999,-500.0,0.00028899,3]
[343694281,1732877444009,-510.006581,0.00028899,3]
[343694282,1732877444018,-500.0,0.00028899,3]
[343694283,1732877444028,-153.39,0.000289,31]
[343694284,1732877444134,-153.39,0.000289,31]
[343694285,1732877444144,-153.39,0.000289,31]
[343694286,1732877444153,-153.39,0.000289,31]
[343694287,1732877444163,-153.39,0.000289,31]
[343694288,1732877444172,-153.39,0.000289,31]
[343694289,1732877444182,-153.39,0.000289,31]
[343694290,1732877444191,-153.39,0.000289,31]
[343694291,1732877444201,-153.39,0.000289,31]
[343694292,1732877444210,-153.39,0.000289,31]
[343694293,1732877444220,-153.39,0.000289,31]
[343694294,1732877444230,-153.39,0.000289,31]
[343694295,1732877444239,-500.69762926,0.00028914,2]
[343694296,1732877444249,-500.0,0.00028981,2]
[343694297,1732877444258,-500.0,0.00028981,3]
[343694298,1732877444267,-500.0,0.00028981,3]
[343694299,1732877444277,-500.0,0.00028999,3]
[343694300,1732877444286,-623.647203,0.00029,29]
[343694301,1732877444295,-500.0,0.00029027,5]
[343694302,1732877444306,-401.54330476,0.00029176,3]
[343694303,1732877444315,-151.0,0.00029295,7]
[343694304,1732877444325,-151.0,0.00029295,7]
[343694305,1732877444334,-151.0,0.00029295,7]
[343694306,1732877444343,-2376.0,0.00029402,2]
[343694307,1732877444352,-1105.0,0.00029402,2]
[343694308,1732877444361,-162.869217,0.00029413,7]
[343694309,1732877444370,-500.0,0.00029415,5]
[343694310,1732877444379,-8807.31219427,0.00029463,2]
[343694311,1732877444389,-500.0,0.00029479,5]
[343694312,1732877444398,-159.98463495,0.00029479,5]
[343694313,1732877444408,-160.0,0.00029551,3]
[343694314,1732877444417,-500.0,0.00029575,5]
[343694315,1732877444427,-500.0,0.00029586,2]
[343694316,1732877444437,-500.0,0.00029586,3]
[343694317,1732877444446,-559.48042966,0.00029586,3]
[343694318,1732877444456,-500.0,0.00029646,3]
[343694319,1732877444466,-8807.31219427,0.00029678,2]
[343694320,1732877444475,-1169.27083333,0.00029763,3]
[343694321,1732877444486,-500.0,0.00029781,3]
[343694322,1732877444495,-500.0,0.00029783,3]
[343694323,1732877444506,-500.0,0.00029783,3]
[343694324,1732877444515,-500.0,0.00029783,3]
[343694325,1732877444524,-500.0,0.00029801,2]
[343694326,1732877444534,-500.0,0.00029801,3]
[343694327,1732877444544,-276.92600202,0.00029802,3]
[343694328,1732877444554,-500.0,0.00029802,2]
[343694329,1732877444564,-500.0,0.00029802,3]
[343694330,1732877444573,-500.0,0.00029802,3]
[343694331,1732877444583,-500.0,0.00029833,3]
[343694332,1732877444592,-151.0,0.00029841,7]
[343694333,1732877444602,-151.0,0.00029841,7]
[343694334,1732877444611,-151.0,0.00029841,7]
[343694335,1732877444621,-249.0,0.0003,2]
[343694336,1732877444630,-382.0,0.00030017,3]
[343694337,1732877444640,-500.0,0.00030027,5]
[343694338,1732877444649,-191.0,0.00030027,3]
[343694339,1732877444659,-191.0,0.00030027,3]
[343694340,1732877444668,-924.31,0.00030027,10]
[343694341,1732877444677,-1109.17,0.00030033,10]
[343694342,1732877444686,-4423.28326861,0.00030037,2]
[343694343,1732877444696,-1331.01,0.00030043,10]
[343694344,1732877444705,-770.26,0.00030044,10]
[343694345,1732877444715,-170.53358638,0.00030053,2]
[343694346,1732877444724,-466.6542153,0.00030053,2]
[343694347,1732877444733,-500.0,0.00030053,2]
[343694348,1732877444743,-500.0,0.00030053,3]
[343694349,1732877444752,-29633.53411185,0.00030054,2]
[343694350,1732877444761,-151.0,0.00030054,7]
[343694351,1732877444770,-151.0,0.00030054,7]
[343694352,1732877444779,-500.0,0.00030055,2]
[343694353,1732877444789,-500.0,0.00030055,2]
[343694354,1732877444799,-500.0,0.00030055,2]
[343694355,1732877444809,-500.0,0.00030055,2]
[343694356,1732877444821,-500.0,0.00030055,2]
[343694357,1732877444831,-500.0,0.00030055,2]
[343694358,1732877444841,-470.5,0.00030055,2]
[343694359,1732877444851,-389.14143354,0.00030055,3]
[343694360,1732877444861,-500.0,0.00030055,3]
[343694361,1732877444871,-500.0,0.00030055,3]
[343694362,1732877444881,-500.0,0.00030055,3]
[343694363,1732877444890,-500.0,0.00030055,3]
[343694364,1732877444902,-500.0,0.00030055,3]
[343694365,1732877444912,-500.0,0.00030055,3]
[343694366,1732877444921,-500.0,0.00030055,3]
[343694367,1732877444931,-500.0,0.00030055,3]
[343694368,1732877444940,-586.48359467,0.00030055,3]
[343694369,1732877444950,-151.0,0.00030055,7]
[343694370,1732877444959,-151.0,0.00030056,7]
[343694371,1732877444969,-151.0,0.00030056,7]
[343694372,1732877444978,-151.0,0.00030056,7]
[343694373,1732877444986,-222000.0,0.00030056,2]
[343694374,1732877444996,-4423.28326857,0.00030092,2]
[343694375,1732877445005,-8807.31219427,0.00030108,2]
[343694376,1732877445016,-201.098401,0.00030137,120]
[343694377,1732877445025,-4423.28326857,0.00030146,2]
[343694378,1732877445034,-170.78253416,0.00030154,2]
[343694379,1732877445044,-2459.41674098,0.00030154,2]
[343694380,1732877445054,-500.0,0.00030155,3]
[343694381,1732877445064,-500.0,0.00030155,3]
[343694382,1732877445073,-226.97056917,0.00030156,2]
[343694383,1732877445083,-276.68797159,0.00030156,3]
[343694384,1732877445092,-361.97477656,0.00030156,3]
[343694385,1732877445101,-425.414481,0.00030156,7]
[343694386,1732877445110,-151.0,0.00030156,7]
[343694387,1732877445120,-425.414481,0.00030156,7]
[343694388,1732877445129,-151.0,0.00030156,7]
[343694389,1732877445139,-1169.27083333,0.00030156,3]
[343694390,1732877445148,-500.0,0.00030156,3]
[343694391,1732877445157,-500.0,0.00030156,3]
[343694392,1732877445167,-297.69938486,0.00030156,3]
[343694393,1732877445177,-500.0,0.00030156,3]
[343694394,1732877445186,-500.0,0.00030156,3]
[343694395,1732877445196,-185.21879531,0.00030156,3]
[343694396,1732877445210,-314.78120469,0.00030156,3]
[343694397,1732877445221,-500.0,0.00030156,3]
[343694398,1732877445234,-500.0,0.00030156,3]
[343694399,1732877445246,-500.0,0.00030156,3]
[343694400,1732877445259,-151.0,0.000302,7]
[343694401,1732877445271,-151.0,0.000302,7]
[343694402,1732877445283,-616.0,0.000302,2]
[343694403,1732877445295,-4423.28326857,0.00030201,2]
[343694404,1732877445308,-425.414481,0.00030251,7]
[343694405,1732877445318,-425.414481,0.00030251,7]
[343694406,1732877445328,-1169.27083333,0.00030251,7]
[343694407,1732877445339,-8112.50740878,0.00030255,2]
[343694422,1732877812107,164.219274,0.00013973,2]
[343694426,1732878358202,-312.931913,0.00025205,2]
[343694427,1732878358223,-219.6529755,0.00028065,2]
[343694428,1732878358245,-500.0,0.00028599,2]
[343694429,1732878358265,-975.02,0.000287,2]
[343694430,1732878358286,-500.0,0.00028767,3]
[343694431,1732878358308,-142.79424233,0.00028856,3]
[343694433,1732878423899,164.219274,0.00013973,2]
[343694434,1732878431097,-250.0,0.0002842,2]
[343694435,1732878431119,-588.41785846,0.000287,2]
[343694436,1732878451094,-289.10214154,0.000287,2]
[343694437,1732878451118,-357.20575767,0.00028856,3]
[343694438,1732878451142,-199.64593876,0.00028899,2]
[343694474,1732878633041,-789.77,0.000287,2]
[343694477,1732878633057,-300.0,0.00028899,2]
[343694479,1732878633068,-3006.0,0.00028899,2]
[343694481,1732878633079,-153.4,0.000289,31]
[343694483,1732878633092,-153.4,0.000289,31]
[343694486,1732878633106,-153.4,0.000289,31]
[343694490,1732878633117,-153.4,0.000289,31]
[343694491,1732878633127,-153.4,0.000289,31]
[343694494,1732878633137,-153.4,0.000289,31]
[343694496,1732878633147,-153.4,0.000289,31]
[343694498,1732878633158,-153.4,0.000289,31]
[343694500,1732878633169,-153.4,0.000289,31]
[343694502,1732878633182,-153.4,0.000289,31]
[343694504,1732878633192,-531.0,0.00029412,2]
[343694506,1732878633203,-2377.0,0.00029412,2]
[343694508,1732878633212,-1105.0,0.00029412,2]
[343694510,1732878633223,-150.0,0.00029437,2]
[343694512,1732878633233,-199.04,0.00029465,3]
[343694514,1732878633243,-7437.92047914,0.00029498,2]
[343694516,1732878633253,-7437.92047914,0.0002964,2]
[343694518,1732878633263,-176.37689464,0.00029712,2]
[343694520,1732878633274,-500.0,0.0002973,3]
[343694522,1732878633284,-940.00634561,0.00029831,2]
[343694524,1732878633294,-923.25070935,0.00029869,2]
[343694526,1732878633304,-940.00634556,0.00029892,2]
[343694528,1732878633314,-159.684,0.000299,24]
[343694530,1732878633324,-500.0,0.00029928,2]
[343694532,1732878633333,-500.0,0.00029928,2]
[343694534,1732878633343,-500.0,0.00029928,2]
[343694536,1732878633356,-500.0,0.00029928,2]
[343694538,1732878633368,-500.0,0.00029928,2]
[343694540,1732878633378,-401.93312595,0.00029928,2]
[343694542,1732878633388,-500.0,0.00029928,2]
[343694544,1732878633399,-500.0,0.00029928,2]
[343694546,1732878633409,-500.0,0.00029928,2]
[343694548,1732878633418,-500.0,0.00029928,2]
[343694550,1732878633429,-500.0,0.00029928,2]
[343694552,1732878633438,-500.0,0.00029928,2]
[343694554,1732878633448,-619.44203867,0.00029928,2]
[343694556,1732878633458,-500.0,0.00029928,2]
[343694558,1732878633467,-500.0,0.00029928,2]
[343694559,1732878633476,-500.0,0.00029928,2]
[343694562,1732878633486,-500.0,0.00029928,2]
[343694563,1732878633496,-500.0,0.00029928,2]
[343694565,1732878633506,-500.0,0.00029928,2]
[343694567,1732878633516,-500.0,0.00029928,2]
[343694569,1732878633526,-500.0,0.00029928,2]
[343694571,1732878633536,-619.14463621,0.00029928,2]
[343694573,1732878633545,-500.0,0.00029928,2]
[343694575,1732878633556,-500.0,0.00029928,2]
[343694577,1732878633566,-500.0,0.00029928,2]
[343694579,1732878633577,-500.0,0.00029928,2]
[343694581,1732878633587,-500.0,0.00029928,2]
[343694583,1732878633600,-500.0,0.00029928,2]
[343694585,1732878633610,-500.0,0.00029928,2]
[343694587,1732878633620,-500.0,0.00029928,2]
[343694589,1732878633630,-500.0,0.00029928,2]
[343694591,1732878633640,-500.0,0.00029928,2]
[343694594,1732878633650,-500.0,0.00029928,2]
[343694596,1732878633663,-500.0,0.00029928,2]
[343694598,1732878633673,-500.0,0.00029928,2]
[343694600,1732878633683,-500.0,0.00029928,2]
[343694602,1732878633692,-500.0,0.00029928,2]
[343694603,1732878633702,-500.0,0.00029928,2]
[343694605,1732878633711,-500.0,0.00029928,2]
[343694608,1732878633721,-500.0,0.00029928,2]
[343694609,1732878633731,-500.0,0.00029928,2]
[343694611,1732878633742,-500.0,0.00029928,2]
[343694614,1732878633751,-500.0,0.00029928,2]
[343694615,1732878633762,-340.72180738,0.00029928,2]
[343694618,1732878633772,-500.0,0.00029928,2]
[343694620,1732878633783,-500.0,0.00029928,2]
[343694622,1732878633794,-237.45616319,0.00029928,2]
[343694627,1732878633843,-262.54383681,0.00029928,2]
[343694630,1732878633855,-500.0,0.00029928,2]
[343694632,1732878633865,-619.01180414,0.00029928,2]
[343694634,1732878633876,-500.0,0.00029928,2]
[343694636,1732878633887,-500.0,0.00029928,2]
[343694638,1732878633897,-500.0,0.00029928,2]
[343694640,1732878633907,-500.0,0.00029928,2]
[343694642,1732878633916,-500.0,0.00029928,2]
[343694644,1732878633927,-500.0,0.00029928,2]
[343694646,1732878633937,-500.0,0.00029928,2]
[343694648,1732878633948,-500.0,0.00029928,2]
[343694650,1732878633959,-500.0,0.00029928,2]
[343694652,1732878633970,-500.0,0.00029928,2]
[343694654,1732878633981,-500.0,0.00029928,2]
[343694656,1732878633992,-651.49296123,0.00029929,2]
[343694658,1732878634002,-500.0,0.00029931,3]
[343694660,1732878634012,-500.0,0.00029931,3]
[343694662,1732878634023,-152.84,0.00029934,3]
[343694664,1732878634034,-8294.31059491,0.00029937,2]
[343694666,1732878634044,-500.0,0.00029942,3]
[343694668,1732878634055,-500.0,0.00029943,3]
[343694670,1732878634067,-229.26,0.00029944,3]
[343694672,1732878634077,-687.78,0.00029944,3]
[343694674,1732878634090,-10460.24,0.00029944,10]
[343694676,1732878634104,-8716.86,0.00029944,10]
[343694678,1732878634117,-7264.05,0.00029944,10]
[343694680,1732878634128,-940.00634556,0.00029952,2]
[343694682,1732878634138,-445.38735908,0.00029953,2]
[343694684,1732878634150,-500.0,0.00029953,3]
[343694686,1732878634161,-500.0,0.00029953,3]
[343694688,1732878634172,-500.0,0.00029953,3]
[343694690,1732878634185,-500.0,0.00029953,3]
[343694693,1732878634198,-580.0,0.00029953,3]
[343694694,1732878634210,-6726.44137485,0.00029954,2]
[343694697,1732878634224,-5738.31596343,0.00029954,2]
[343694730,1732878638854,-500.0,0.00029928,2]
[343694731,1732878638864,-45285.97074717,0.00029954,2]
[343694732,1732878639143,-12313.59998738,0.00029954,2]
[343694763,1732878645315,-6053.38,0.00029944,10]
[343694764,1732878645325,-79157.99366991,0.00029954,2]
[343694779,1732878646663,-2805.97989003,0.00029954,2]
[343694781,1732878646678,-492.98046976,0.00029954,2]
[343694782,1732878646705,-69478.71789747,0.00029954,2]
[343694783,1732878646715,-923.25070935,0.00029966,2]
[343694784,1732878646724,-500.0,0.00029969,4]
[343694785,1732878646734,-500.89544524,0.00029973,5]
[343694786,1732878646744,-500.0,0.00029973,5]
[343694787,1732878646754,-7437.92047916,0.00029994,2]
[343694788,1732878646763,-241.0,0.0003,2]
[343694789,1732878646780,-940.00634556,0.00030013,2]
[343694790,1732878646798,-340.331585,0.00030055,7]
[343694791,1732878646808,-340.331585,0.00030055,7]
[343694792,1732878646817,-340.331585,0.00030056,7]
[343694793,1732878646827,-340.331585,0.00030056,7]
[343694794,1732878646836,-923.25070935,0.00030063,2]
[343694795,1732878646846,-940.00634556,0.00030074,2]
[343694796,1732878646855,-940.00634556,0.00030135,2]
[343694797,1732878646866,-201.098401,0.00030137,120]
[343694798,1732878646876,-923.25070935,0.00030159,2]
[343694799,1732878646886,-940.00634556,0.00030195,2]
[343694800,1732878646897,-616.0,0.000302,2]
[343694801,1732878646907,-150.01,0.00030254,2]
[343694802,1732878646918,-340.331585,0.00030255,7]
[343694803,1732878646928,-340.331585,0.00030255,7]
[343694804,1732878646938,-1169.27083333,0.00030256,3]
[343694805,1732878646948,-923.25070935,0.00030256,2]
[343694806,1732878646958,-940.00634556,0.00030256,2]
[343694807,1732878646967,-8882.34135126,0.00030256,2]
[343694808,1732878646982,-4314.61145208,0.00030256,2]
[343694809,1732878646992,-666.0,0.00030256,2]
[343694810,1732878647002,-151.0,0.000303,14]
[343694811,1732878647012,-151.0,0.000303,18]
[343694812,1732878647022,-224.119304,0.000303,2]
[343694813,1732878647032,-500.87166258,0.00030354,11]
[343694814,1732878647042,-500.0,0.00030354,11]
[343694815,1732878647052,-340.331585,0.00030355,7]
[343694816,1732878647062,-340.331585,0.00030355,7]
[343694817,1732878647071,-340.331585,0.00030355,7]
[343694818,1732878647080,-340.331585,0.00030355,7]
[343694819,1732878647090,-340.331585,0.00030355,7]
[343694820,1732878647099,-340.331585,0.00030355,7]
[343694821,1732878647109,-340.331585,0.00030355,7]
[343694822,1732878647118,-340.331585,0.00030355,7]
[343694823,1732878647127,-340.331585,0.00030355,7]